[Event "German Bundesliga 2021-22"]
[Site "Germany"]
[Date "2022.04.09"]
[Round "3.16"]
[White "Moehn, Hans"]
[Black "Hausrath, Daniel"]
[Result "0-1"]
[ECO "A38"]
[WhiteElo "2360"]
[BlackElo "2475"]
[Annotator "RC"]
[PlyCount "74"]
[EventDate "2022.03.05"]
[EventType "team-tourn"]
[EventCountry "GER"]
[SourceTitle "playchess.com"]
[Source "ChessBase"]
[SourceQuality "1"]
[TimeControl "40/5400+30:1800+30"]

1. Nf3 {[%emt 0:00:00]} Nf6 {[%emt 0:00:00]} 2. g3 {[%emt 0:00:00]} g6 {[%emt 0:00:00]} 3. b3 {[%emt 0:00:00]} Bg7 {[%emt 0:00:00]} 4. Bb2 {[%emt 0:00:00]} c5 {[%emt 0:00:43]} 5. c4 {[%emt 0:00:00]} d6 {[%emt 0:00:49]} 6. Bg2 {[%emt 0:00:00]} e5 {[%emt 0:03:19]} 7. O-O {[%emt 0:00:00]} Nc6 {[%emt 0:00:06]} 8. Nc3 {[%emt 0:00:00]} Rb8 {[%emt 0:04:26]} 9. d3 {[%emt 0:00:00]} O-O {[%emt 0:04:38]} 10. e3 {[%emt 0:02:31]} Bf5 {[%emt 0:03:07]} 11. Ng5 {[%emt 0:03:28]} Ng4 {[%emt 0:14:59]} 12. Nge4 {[%emt 0:01:38]} a6 {[%emt 0:01:03]} 13. Nd5 {[%emt 0:07:14]} Be6 {[%emt 0:09:01]} 14. h3 {[%emt 0:09:01]} Nh6 {[%emt 0:00:43]} 15. Qd2 {[%emt 0:13:50]} f5 {[%emt 0:07:10]} 16. Nec3 {[%emt 0:03:51]} g5 {[%emt 0:00:14]} 17. f4 {[%emt 0:01:53]} Kh8 {[%emt 0:01:58]} 18. Ne2 {[%emt 0:11:58]} gxf4 {[%emt 0:08:55]} 19. gxf4 {[%emt 0:02:33]} Rg8 {[%emt 0:00:19]} 20. Kh1 {[%emt 0:02:24]} Qh4 {[%emt 0:19:44]} 21. Ng1 {[%emt 0:06:48]} e4 {[%emt 0:03:07]} 22. Qf2 {[%emt 0:06:38]} Qxf2 {[%emt 0:01:53]} 23. Rxf2 {[%emt 0:00:21]} Bxb2 {[%emt 0:00:23]} 24. Rxb2 {[%emt 0:00:06]} Bxd5 {[%emt 0:00:40]} 25. cxd5 {[%emt 0:00:05]} Nb4 {[%emt 0:00:20]} 26. dxe4 {[%emt 0:09:46]} fxe4 {[%emt 0:01:13]} 27. Rd2 {[%emt 0:00:18]} Nf5 {[%emt 0:07:14]} 28. Kh2 {[%emt 0:08:23]} Nxe3 {[%emt 0:01:41]} 29. Bxe4 {[%emt 0:00:54]} Rbe8 {[%emt 0:00:47]} 30. Bh1 {[%emt 0:01:06]} Nbc2 {[%emt 0:02:20]} 31. Rc1 {[%emt 0:00:48]} Nd4 {[%emt 0:00:09]} 32. Nf3 {[%emt 0:03:44]} Ne2 {[%emt 0:00:40]} 33. Rb1 {[%emt 0:03:47]} Nxf4 {[%emt 0:00:52]} 34. b4 {[%emt 0:00:41]} c4 {[%emt 0:00:40]} 35. Nd4 {[%emt 0:00:34]} c3 {[%emt 0:01:32]} 36. Rf2 {[%emt 0:00:27]} Nd3 {[%emt 0:00:34]} 37. Rf3 {[%emt 0:00:46]} c2 {[%emt 0:00:38]} 0-1

[Event "German Bundesliga 2021-22"]
[Site "Germany"]
[Date "2022.04.09"]
[Round "3.16"]
[White "Rafiee, Makan"]
[Black "Abergel, Thal"]
[Result "0-1"]
[ECO "B61"]
[WhiteElo "2338"]
[BlackElo "2384"]
[Annotator "NA RC"]
[PlyCount "84"]
[EventDate "2022.03.05"]
[EventType "team-tourn"]
[EventCountry "GER"]
[SourceTitle "playchess.com"]
[Source "ChessBase"]
[SourceQuality "1"]
[TimeControl "40/5400+30:1800+30"]

1. e4 {[%emt 0:00:00]} c5 {[%emt 0:00:00]} 2. Nf3 {[%emt 0:00:00]} d6 {[%emt 0:00:00]} 3. d4 {[%emt 0:00:00]} cxd4 {[%emt 0:00:00]} 4. Nxd4 {[%emt 0:00:00]} Nf6 {[%emt 0:00:00]} 5. Nc3 {[%emt 0:00:00]} Nc6 {[%emt 0:00:00]} 6. Bg5 {[%emt 0:00:00]} Bd7 {[%emt 0:00:00]} 7. Qd2 {[%emt 0:00:00]} Rc8 {[%emt 0:00:00]} 8. Nxc6 {[%emt 0:00:00]} Bxc6 {[%emt 0:00:00]} 9. f3 {[%emt 0:00:00]} a6 {[%emt 0:03:24]} 10. O-O-O {[%emt 0:00:00]} e6 {[%emt 0:02:10]} 11. Kb1 {[%emt 0:00:00]} Be7 {[%emt 0:01:20]} 12. h4 {[%emt 0:00:00]} h5 {[%emt 0:12:20]} 13. Bd3 {[%emt 0:49:35]} d5 {[%emt 0:12:41]} 14. e5 {[%emt 0:00:29]} Nd7 {[%emt 0:00:17]} 15. f4 {[%emt 0:05:12]} g6 {[%emt 0:10:17]} 16. Ne2 {[%emt 0:01:16]} Qb6 {[%emt 0:04:02]} 17. Bxe7 {[%emt 0:00:54]} Kxe7 {[%emt 0:00:07]} 18. c3 {[%emt 0:05:04]} Bb5 {[%emt 0:09:20]} 19. Bxb5 {[%emt 0:01:58]} axb5 {[%emt 0:01:35]} 20. Nd4 {[%emt 0:06:06]} Nc5 {[%emt 0:02:54]} 21. f5 {[%emt 0:09:14]} gxf5 {[%emt 0:01:09]} 22. Qg5+ {[%emt 0:00:16]} Kd7 {[%emt 0:06:58]} 23. Qf6 {[%emt 0:02:24]} Kc7 {[%emt 0:00:31]} 24. Qxf7+ {[%emt 0:02:36]} Kb8 {[%emt 0:00:07]} 25. Rh3 {[%emt 0:02:26]} Rc7 {[%emt 0:11:49]} 26. Qf6 {[%emt 0:01:18]} Rg8 {[%emt 0:01:00]} 27. Rf3 {[%emt 0:01:07]} b4 {[%emt 0:01:43]} 28. cxb4 {[%emt 0:06:14]} Qxb4 {[%emt 0:00:18]} 29. Nxe6 {[%emt 0:01:33]} Nxe6 {[%emt 0:11:04]} 30. Qxe6 {[%emt 0:00:14]} Rxg2 {[%emt 0:00:45]} 31. Rb3 {[%emt 0:00:47]} Qe4+ {[%emt 0:01:16]} 32. Ka1 {[%emt 0:00:06]} Qc2 {[%emt 0:02:23]} 33. Qe8+ {[%emt 0:02:32]} Rc8 {[%emt 0:00:03]} 34. Rxb7+ {[%emt 0:00:31]} Ka8 {[%emt 0:01:49]} 35. Ra7+ {[%emt 0:00:58]} Kxa7 {[%emt 0:00:27]} 36. Qe7+ {[%emt 0:00:06]} Qc7 {[%emt 0:01:09]} 37. Qa3+ {[%emt 0:00:06]} Kb8 {[%emt 0:00:51]} 38. Qb4+ {[%emt 0:00:20]} Qb7 {[%emt 0:01:00]} 39. Qd6+ {[%emt 0:00:20]} Ka8 {[%emt 0:00:31]} 40. Qa3+ {[%emt 0:00:45]} Qa7 {[%emt 0:02:53]} 41. Qd3 {[%emt 0:30:12]} Qa5 {[%emt 0:00:00]} 42. e6 {[%emt 0:00:00]} Rd2 {[%emt 0:00:00]} 0-1

[Event "German Bundesliga 2021-22"]
[Site "Germany"]
[Date "2022.04.09"]
[Round "3.16"]
[White "Wiedenbruch, Paul"]
[Black "Koellner, Ruben Gideon"]
[Result "0-1"]
[ECO "B07"]
[WhiteElo "1887"]
[BlackElo "2441"]
[Annotator "NA RC"]
[PlyCount "84"]
[EventDate "2022.03.05"]
[EventType "team-tourn"]
[EventCountry "GER"]
[SourceTitle "playchess.com"]
[Source "ChessBase"]
[SourceQuality "1"]
[TimeControl "40/5400+30:1800+30"]

1. e4 {[%emt 0:00:00]} d6 {[%emt 0:00:00]} 2. d4 {[%emt 0:00:00]} Nf6 {[%emt 0:00:00]} 3. Nc3 {[%emt 0:00:00]} Nbd7 {[%emt 0:00:00]} 4. Nf3 {[%emt 0:00:00]} e5 {[%emt 0:00:00]} 5. g4 {[%emt 0:00:00]} h6 {[%emt 0:00:00]} 6. Bc4 {[%emt 0:00:00]} Nb6 {[%emt 0:00:00]} 7. Bb3 {[%emt 0:03:05]} exd4 {[%emt 0:00:00]} 8. Qxd4 {[%emt 0:14:35]} Bxg4 {[%emt 0:00:00]} 9. Qd3 {[%emt 0:01:39]} Nfd7 {[%emt 0:04:59]} 10. Qe3 {[%emt 0:09:02]} Qf6 {[%emt 0:11:19]} 11. Nd4 {[%emt 0:07:37] [#]} a6 {[%emt 0:01:35]} ({Black should play} 11... O-O-O $1 $17 12. Qf4 Qxf4 13. Bxf4 g5) 12. Rg1 {[%emt 0:07:16]} Bh5 {[%emt 0:07:24]} 13. f4 {[%emt 0:05:29]} (13. a4 $1 $11 Ne5 14. a5) 13... g6 {[%emt 0:03:08]} 14. Bd2 {[%emt 0:09:53]} Bg7 {[%emt 0:03:05]} 15. Nde2 {[%emt 0:03:26]} Bxe2 {[%emt 0:05:36]} 16. Qxe2 {[%emt 0:01:09]} Qh4+ {[%emt 0:02:27]} 17. Rg3 {[%emt 0:02:18]} Nc5 $17 {[%emt 0:00:18]} 18. O-O-O {[%emt 0:04:20]} Qe7 {[%emt 0:03:46]} 19. Re1 {[%emt 0:08:54]} O-O-O {[%emt 0:01:51]} 20. e5 {[%emt 0:03:52]} Nxb3+ {[%emt 0:01:37]} 21. axb3 {[%emt 0:00:12]} dxe5 {[%emt 0:00:10]} 22. fxe5 {[%emt 0:00:20]} Qe6 {[%emt 0:01:55]} 23. Ne4 {[%emt 0:07:55]} Bxe5 {[%emt 0:13:22]} 24. Nc5 {[%emt 0:05:15]} Qd5 {[%emt 0:00:54]} 25. Qxe5 {[%emt 0:01:06]} Qxd2+ {[%emt 0:00:08]} 26. Kb1 {[%emt 0:00:04]} Nd7 {[%emt 0:06:47]} 27. Nxd7 {[%emt 0:01:01]} Qxd7 {[%emt 0:00:10]} 28. Rd3 {[%emt 0:00:22]} Rde8 {[%emt 0:01:15]} 29. Rxd7 {[%emt 0:01:21]} Rxe5 {[%emt 0:00:07]} 30. Rxc7+ {[%emt 0:00:06]} Kxc7 {[%emt 0:00:02]} 31. Rxe5 {[%emt 0:00:08]} Kd6 {[%emt 0:00:14]} 32. Re3 {[%emt 0:00:30]} f5 {[%emt 0:00:10]} 33. Kc1 {[%emt 0:00:11]} f4 {[%emt 0:00:26]} 34. Rf3 {[%emt 0:00:19]} Ke5 {[%emt 0:00:06]} 35. Kd2 {[%emt 0:00:10]} Ke4 {[%emt 0:00:17]} 36. Ke2 {[%emt 0:00:27]} Rc8 {[%emt 0:00:08]} 37. c3 {[%emt 0:00:39]} g5 {[%emt 0:00:13]} 38. Rd3 {[%emt 0:00:28]} Rc6 {[%emt 0:00:12]} 39. Rd4+ {[%emt 0:00:45]} Kf5 {[%emt 0:00:06]} 40. c4 {[%emt 0:01:52]} Rb6 {[%emt 0:00:28]} 41. Rd3 {[%emt 0:30:28]} g4 {[%emt 0:30:42]} 42. Rc3 {[%emt 0:00:27]} Re6+ {[%emt 0:00:12]} 0-1

[Event "German Bundesliga 2021-22"]
[Site "Germany"]
[Date "2022.04.10"]
[Round "4.1"]
[White "Maghsoodloo, Parham"]
[Black "Mamedyarov, Shakhriyar"]
[Result "1/2-1/2"]
[ECO "C67"]
[WhiteElo "2701"]
[BlackElo "2767"]
[Annotator "TA"]
[PlyCount "59"]
[EventDate "2022.03.05"]
[EventType "team-tourn"]
[EventCountry "GER"]
[SourceTitle "playchess.com"]
[Source "ChessBase"]
[SourceQuality "1"]
[TimeControl "40/5400+30:1800+30"]

{[%evp 9,59,26,27,-2,0,-6,0,0,0,0,0,0,0,5,12,10,11,6,12,8,19,12,13,13,13,13,17,14,14,13,14,13,13,13,14,13,14,13,13,14,14,13,16,14,28,28,28,28,38,14,16,15]} 1. e4 {[%emt 0:00:00]} e5 {[%emt 0:00:00]} 2. Nf3 {[%emt 0:00:00]} Nc6 {[%emt 0:00:00]} 3. Bb5 {[%emt 0:00:00]} Nf6 {[%emt 0:00:00]} 4. O-O {[%emt 0:00:00]} Nxe4 {[%emt 0:00:00]} 5. Re1 {[%emt 0:00:00]} Nd6 {[%emt 0:00:00]} 6. a4 {[%emt 0:00:00] C67: Ruy Lopez: Berlin Defence: 4 0-0 Nxe4.} Be7 {[%emt 0:00:00]} 7. Nc3 {[%emt 0:00:00] Against e4} a6 {[%emt 0:05:20]} 8. Bf1 {[%emt 0:00:00]} Nf5 {[%emt 0:05:51]} 9. Nxe5 {[%emt 0:15:23]} Nxe5 {[%emt 0:02:06]} 10. Rxe5 {[%emt 0:00:07]} d6 {[%emt 0:00:02]} 11. Re1 {[%emt 0:01:30]} d5 {[%emt 0:02:46]} 12. d4 {[%emt 0:03:52]} O-O {[%emt 0:00:42] [#]} 13. a5 $146 {[%emt 0:07:28]} ({Predecessor:} 13. Bf4 c6 14. Ne2 a5 15. Nc1 Bd6 16. Qd2 Qc7 17. Bxd6 Nxd6 18. Qf4 Bf5 19. Nd3 {½-½ (31) Pichot,A (2600)-Vidit,S (2718) Khanty-Mansiysk 2019}) 13... c6 {[%emt 0:09:30]} 14. Ne2 {[%emt 0:05:23]} Re8 {[%emt 0:07:15]} 15. c3 {[%emt 0:06:48]} Bf8 {[%emt 0:04:51]} 16. Nf4 {[%emt 0:04:33]} Rxe1 {[%emt 0:04:17]} 17. Qxe1 {[%emt 0:00:23]} Nd6 {[%emt 0:00:26]} 18. Nd3 {[%emt 0:04:47]} Nc4 {[%emt 0:01:55]} 19. b4 {[%emt 0:01:17]} Bf5 {[%emt 0:06:20]} 20. Nc5 {[%emt 0:03:16]} Bxc5 {[%emt 0:02:34]} 21. dxc5 {[%emt 0:00:09]} Qd7 {[%emt 0:00:05]} 22. Ra2 {[%emt 0:01:17]} f6 {[%emt 0:04:18]} 23. Re2 {[%emt 0:02:02] aiming for Re7.} Kf7 {[%emt 0:00:50] Inhibits Re7+.} 24. Qd1 {[%emt 0:02:34] Prevents Bd3.} Re8 {[%emt 0:03:02]} 25. h3 {[%emt 0:01:00]} Rxe2 {[%emt 0:00:48]} 26. Qxe2 {[%emt 0:00:08]} Qe7 {[%emt 0:00:57]} 27. Qxe7+ {[%emt 0:00:24]} Kxe7 {[%emt 0:00:04]} 28. g4 {[%emt 0:00:20]} Bc2 {[%emt 0:01:04]} 29. Bxc4 {[%emt 0:00:23]} dxc4 {[%emt 0:00:03]} 30. f3 {[%emt 0:00:26] Weighted Error Value: White=0.03 (flawless) /Black=0.02 (flawless)} 1/2-1/2

[Event "German Bundesliga 2021-22"]
[Site "Germany"]
[Date "2022.04.10"]
[Round "4.1"]
[White "Postny, Evgeny"]
[Black "Moiseenko, Alexander"]
[Result "1/2-1/2"]
[ECO "D20"]
[WhiteElo "2567"]
[BlackElo "2602"]
[Annotator "TA"]
[PlyCount "79"]
[EventDate "2022.03.05"]
[EventType "team-tourn"]
[EventCountry "GER"]
[SourceTitle "playchess.com"]
[Source "ChessBase"]
[SourceQuality "1"]
[TimeControl "40/5400+30:1800+30"]

{[%evp 9,79,0,0,0,0,0,0,0,4,0,0,-7,-7,-8,-7,-6,-9,-7,16,-11,31,0,0,-7,-10,-11,-6,-16,0,0,0,0,0,0,0,0,0,-24,0,0,0,0,0,0,0,0,0,0,0,0,0,0,0,0,0,0,-2,-49,0,0,0,0,0,0,0,0,0,0,0,0,0,0]} 1. d4 {[%emt 0:00:00]} d5 {[%emt 0:00:00]} 2. c4 {[%emt 0:00:00]} dxc4 {[%emt 0:00:00]} 3. e3 {[%emt 0:00:00]} e5 {[%emt 0:00:00][%cal Be7e5,Be5d4][%mdl 32]} 4. Bxc4 {[%emt 0:00:00]} exd4 {[%emt 0:00:00]} 5. Nf3 {[%emt 0:00:02]} Bb4+ {[%emt 0:00:00]} 6. Bd2 {[%emt 0:01:23] D20: Queen's Gambit Accepted: 3 e3 and 3 e4.} Bxd2+ {[%emt 0:00:00]} 7. Qxd2 {[%emt 0:00:13]} ({Much worse is} 7. Kxd2 dxe3+ 8. Ke2 Qf6 $17) 7... Nc6 {[%emt 0:03:29][%cal Bb8c6,Bc6e7,Be7g6][%mdl 32]} 8. O-O {[%emt 0:06:53][%cal Re3d4]} Nf6 {[%emt 0:02:51]} 9. exd4 {[%emt 0:02:45]} O-O {[%emt 0:00:57]} 10. d5 {[%emt 0:09:25]} Ne7 {[%emt 0:01:56][%cal Re7d5]} 11. Nc3 {[%emt 0:00:48]} a6 {[%emt 0:01:54]} 12. Bb3 {[%emt 0:10:34]} Qd6 {[%emt 0:07:22]} 13. Rfe1 {[%emt 0:02:11]} Ng6 {[%emt 0:00:58]} 14. h3 {[%emt 0:07:41] [#]} h6 $146 {[%emt 0:06:44]} ({Predecessor:} 14... Bd7 15. Ng5 Bf5 16. Nf3 Rad8 17. Rad1 h6 18. Qc1 Kh8 19. Nd4 Bc8 20. Nf3 Rfe8 21. Rxe8+ Rxe8 {½-½ (31) Lu,A (2323)-Huang,A (2178) Manchester 2017}) 15. Rac1 {[%emt 0:10:19]} Bd7 {[%emt 0:06:41]} 16. Bc2 {[%emt 0:04:50]} Rfe8 {[%emt 0:02:06]} 17. Bxg6 {[%emt 0:03:35]} fxg6 {[%emt 0:00:23]} 18. Qd4 {[%emt 0:01:44]} Rxe1+ {[%emt 0:02:21]} 19. Rxe1 {[%emt 0:00:04]} Re8 {[%emt 0:00:10]} 20. Ne4 {[%emt 0:18:53]} Nxe4 {[%emt 0:05:01]} 21. Rxe4 {[%emt 0:02:01]} Rxe4 {[%emt 0:03:03]} 22. Qxe4 {[%emt 0:00:04]} Bf5 {[%emt 0:02:26]} 23. Qd4 {[%emt 0:02:50]} Bb1 {[%emt 0:04:40]} 24. b3 $1 {[%emt 0:02:21]} Bf5 {[%emt 0:04:43]} (24... Bxa2 $2 25. Qb2 $18) 25. g4 {[%emt 0:02:55]} Bc8 {[%emt 0:06:41]} 26. Qe4 {[%emt 0:01:15]} g5 {[%emt 0:04:00]} 27. Ne5 {[%emt 0:04:58]} Qe7 {[%emt 0:06:32]} 28. Qd4 {[%emt 0:00:35]} b6 {[%emt 0:02:22]} 29. Nc6 {[%emt 0:01:11]} Qe8 {[%emt 0:04:39]} 30. Qc4 {[%emt 0:01:08] [#] d6+ is the strong threat.} Kh8 {[%emt 0:04:11]} 31. Kf1 {[%emt 0:00:40]} Bb7 {[%emt 0:02:58]} 32. a4 {[%emt 0:00:42]} a5 {[%emt 0:00:32]} 33. Qc2 {[%emt 0:01:35]} (33. f3 $11 {deserves consideration.}) 33... Ba6+ {[%emt 0:00:57]} (33... Bxc6 $15 34. dxc6 Qe6) 34. Kg2 $11 {[%emt 0:00:14] The position is equal.} Qe1 {[%emt 0:05:22] [#] White must now prevent ...Qf1+.} 35. Qf5 {[%emt 0:00:24]} Bf1+ {[%emt 0:01:49]} 36. Kh2 {[%emt 0:00:22] Threatens to win with Qf8+.} Qc3 {[%emt 0:01:05][%csl LRb3,LRh3]} 37. Qf8+ {[%emt 0:01:35]} Kh7 {[%emt 0:00:04]} 38. Qf5+ {[%emt 0:00:06]} Kh8 {[%emt 0:00:38]} 39. Qf8+ {[%emt 0:02:44]} Kh7 {[%emt 0:00:06]} 40. Qf5+ {[%emt 0:00:41] An interesting draw.  Weighted Error Value: White=0.05 (flawless) /Black=0.05 (flawless)} 1/2-1/2

[Event "German Bundesliga 2021-22"]
[Site "Germany"]
[Date "2022.04.10"]
[Round "4.1"]
[White "Stern, Rene"]
[Black "Svane, Rasmus"]
[Result "0-1"]
[ECO "A33"]
[WhiteElo "2510"]
[BlackElo "2637"]
[Annotator "TA"]
[PlyCount "58"]
[EventDate "2022.03.05"]
[EventType "team-tourn"]
[EventCountry "GER"]
[SourceTitle "playchess.com"]
[Source "ChessBase"]
[SourceQuality "1"]
[TimeControl "40/5400+30:1800+30"]

{[%evp 16,58,0,0,37,29,45,39,47,6,11,22,12,0,0,0,0,0,0,-22,0,-17,-8,-93,-3,-459,-462,-459,-454,-418,-436,-608,-589,-788,-781,-736,-306,-29980,-29981,-8134,-5297,-4154,-2322,-29991,-29992]} 1. Nf3 {[%emt 0:00:00]} Nf6 {[%emt 0:00:00]} 2. c4 {[%emt 0:00:00]} c5 {[%emt 0:00:00]} 3. Nc3 {[%emt 0:00:00]} Nc6 {[%emt 0:00:00]} 4. d4 {[%emt 0:00:00]} cxd4 {[%emt 0:00:00]} 5. Nxd4 {[%emt 0:00:00]} e6 {[%emt 0:00:00]} 6. e4 {[%emt 0:00:00]} Bb4 {[%emt 0:00:00]} 7. Nxc6 {[%emt 0:00:00]} bxc6 {[%emt 0:00:00]} 8. Bd3 {[%emt 0:00:00]} e5 {[%emt 0:02:54]} 9. O-O {[%emt 0:00:00]} Bc5 {[%emt 0:10:40] B44: Sicilian: Taimanov: 5 Nb5.} 10. Re1 {[%emt 0:00:00]} d6 {[%emt 0:05:34]} 11. Be3 {[%emt 0:01:43] [#]} O-O $5 $146 {[%emt 0:07:04][%mdl 8] White is slightly better. An interesting novelty.} ({Predecessor:} 11... Bxe3 12. Rxe3 Rb8 13. Qd2 O-O 14. Be2 Ne8 15. c5 Qe7 16. cxd6 Nxd6 17. Rd1 Nb7 {½-½ (75) Cernousek,L (2442)-Piorun,K (2611) Prague 2020}) 12. Na4 {[%emt 0:10:27]} Bxe3 {[%emt 0:16:02]} 13. Rxe3 {[%emt 0:00:06]} Qe7 {[%emt 0:06:32]} 14. Qe2 {[%emt 0:31:02]} Bg4 {[%emt 0:07:41]} 15. f3 {[%emt 0:00:39]} Be6 {[%emt 0:00:55]} 16. c5 {[%emt 0:00:29]} Rfd8 {[%emt 0:04:55][%cal Bf8d8,Bd8d6,Bd6d4][%mdl 32]} 17. cxd6 {[%emt 0:08:24]} Rxd6 {[%emt 0:02:45]} 18. b3 {[%emt 0:27:56]} Rad8 {[%emt 0:03:02] Threatens to win with ...Nh5.} 19. g3 {[%emt 0:01:42]} (19. Nb2 $1 $11) 19... Nh5 {[%emt 0:06:55]} ({Black should try} 19... h5 $17) 20. Kh1 $2 {[%emt 0:01:58][%mdl 8192] [#] Loses the game.} (20. Nb2 $11 {and White is okay.}) 20... Nf4 $1 $19 {[%emt 0:05:05][%mdl 512]} 21. gxf4 {[%emt 0:00:06]} exf4 {[%emt 0:00:05]} 22. e5 {[%emt 0:00:22]} Rd4 {[%emt 0:00:59]} 23. Bxh7+ {[%emt 0:00:49]} Kxh7 {[%emt 0:00:09]} 24. Qc2+ {[%emt 0:01:26]} g6 {[%emt 0:02:46]} 25. Re2 {[%emt 0:00:05]} Bf5 {[%emt 0:02:49]} (25... Bd5 $142 26. Rf2 Qh4) 26. Qxc6 {[%emt 0:10:43]} (26. Qc1 $19 Bd3 27. Rf2) 26... Rd1+ {[%emt 0:01:11]} 27. Re1 {[%emt 0:00:04]} Rxa1 {[%emt 0:02:05][%mdl 64] Deflection} 28. Rxa1 {[%emt 0:00:04]} Qxe5 {[%emt 0:00:23]} 29. Qc3 {[%emt 0:00:10]} Qe2 {[%emt 0:01:07] Weighted Error Value: White=1.32/Black=0.45} 0-1

[Event "German Bundesliga 2021-22"]
[Site "Germany"]
[Date "2022.04.10"]
[Round "4.1"]
[White "Seel, Christian"]
[Black "Keymer, Vincent"]
[Result "0-1"]
[ECO "D43"]
[WhiteElo "2486"]
[BlackElo "2664"]
[Annotator "TA"]
[PlyCount "120"]
[EventDate "2022.03.05"]
[EventType "team-tourn"]
[EventCountry "GER"]
[SourceTitle "playchess.com"]
[Source "ChessBase"]
[SourceQuality "1"]
[TimeControl "40/5400+30:1800+30"]

{[%evp 16,120,0,5,0,0,8,12,5,6,10,0,6,10,8,6,5,3,15,1,0,0,0,0,0,0,0,0,0,0,0,0,0,0,0,0,0,0,0,0,0,0,0,0,0,0,0,0,0,0,0,0,0,-31,-31,-31,-31,-31,-31,-31,-31,-31,-31,-31,-31,-39,-31,-31,-31,-37,-32,-39,-39,-46,-46,-46,-46,-46,-46,-46,-46,-46,-46,-411,-410,-430,-416,-345,-320,-450,-401,-843,-762,-5505,-2367,-2393,-2151,-29983,-29984,-29984,-29979,-29992,-29993,-29995,-29996,-29997,-29998]} 1. Nf3 {[%emt 0:00:00]} d5 {[%emt 0:00:00]} 2. d4 {[%emt 0:00:00]} Nf6 {[%emt 0:00:00]} 3. c4 {[%emt 0:00:00]} e6 {[%emt 0:00:00]} 4. Nc3 {[%emt 0:00:00]} c6 {[%emt 0:00:00]} 5. Bg5 {[%emt 0:00:00]} h6 {[%emt 0:00:00]} 6. Bxf6 {[%emt 0:00:00]} Qxf6 {[%emt 0:00:00]} 7. Qb3 {[%emt 0:00:00]} Nd7 {[%emt 0:00:00]} 8. e4 {[%emt 0:00:00]} dxe4 {[%emt 0:00:00]} 9. Nxe4 {[%emt 0:00:00]} Qf5 {[%emt 0:00:00] D43: Semi-Slav: 5 Bg5 h6.} 10. Bd3 {[%emt 0:00:00][%cal Oe4d6] [#] Hoping for Nd6+!} Qa5+ {[%emt 0:00:00]} 11. Nc3 {[%emt 0:00:00]} e5 {[%emt 0:00:00] The position is equal.} 12. O-O {[%emt 0:00:00]} exd4 {[%emt 0:03:01]} 13. Rae1+ {[%emt 0:00:00]} Be7 {[%emt 0:00:19]} 14. Nxd4 {[%emt 0:00:00] aiming for Nf5.} Nc5 {[%emt 0:03:29][%csl LRb3,LRd3]} 15. Qd1 {[%emt 0:00:00]} Qd8 {[%emt 0:13:42]} 16. Bf5 {[%emt 0:00:00] Bxc8 is the strong threat.} O-O {[%emt 0:05:41]} 17. Bxc8 {[%emt 0:01:38]} Rxc8 {[%emt 0:00:06]} 18. Nf5 {[%emt 0:00:58]} Bg5 {[%emt 0:09:14] [#]} 19. Qf3 $146 {[%emt 0:07:54][%cal Oh2h4] Black must now prevent h4!} ({Predecessor:} 19. Nd6 Rc7 20. b4 Na6 21. a3 Rd7 22. c5 Be7 23. Qd4 b6 24. Qc4 b5 25. Qd4 Bxd6 26. cxd6 Rxd6 27. Qxa7 {½-½ (44) Ferre Perez,A (2141)-Marin Millan,J (2217) ICCF email 2018}) 19... Qd3 {[%emt 0:14:36]} 20. Ne7+ {[%emt 0:07:40]} Bxe7 {[%emt 0:00:37]} 21. Qxd3 {[%emt 0:00:05]} Nxd3 {[%emt 0:00:04]} 22. Rxe7 {[%emt 0:00:06]} Rb8 {[%emt 0:00:20]} 23. Re2 {[%emt 0:02:56]} Rfd8 {[%emt 0:07:41]} 24. Rd1 {[%emt 0:03:46] And now Red2 would win.} Nc5 {[%emt 0:00:54]} 25. Red2 {[%emt 0:09:11]} Rxd2 {[%emt 0:01:35]} 26. Rxd2 $11 {[%emt 0:00:54][%mdl 4096] Endgame KRN-KRN} a5 {[%emt 0:00:06]} 27. b3 {[%emt 0:02:16]} Re8 {[%emt 0:02:26][%cal Re8e1]} 28. Kf1 {[%emt 0:03:05] Inhibits Re1+.} g6 {[%emt 0:00:51]} 29. f3 {[%emt 0:09:26]} Kg7 {[%emt 0:04:32]} 30. Kf2 {[%emt 0:01:17]} g5 {[%emt 0:06:20]} 31. Rd4 {[%emt 0:04:58]} f5 {[%emt 0:04:10]} 32. g3 {[%emt 0:21:57]} Kf6 {[%emt 0:03:02]} 33. Rd6+ {[%emt 0:06:07]} Re6 {[%emt 0:00:49]} 34. Rxe6+ {[%emt 0:00:22]} Nxe6 {[%emt 0:00:08] KN-KN} 35. Ke3 {[%emt 0:11:23]} Ke5 {[%emt 0:00:54]} 36. Ne2 {[%emt 0:00:42]} f4+ {[%emt 0:01:33]} 37. gxf4+ {[%emt 0:00:37]} gxf4+ {[%emt 0:00:31]} 38. Kd3 {[%emt 0:00:54]} Ng5 {[%emt 0:09:10]} 39. Ng1 {[%emt 0:00:13]} c5 {[%emt 0:00:09]} 40. a3 {[%emt 0:11:30]} b6 {[%emt 0:03:59]} 41. Kc3 {[%emt 0:00:01]} h5 {[%emt 0:00:00]} 42. Kd3 {[%emt 0:02:07]} Ne6 {[%emt 0:00:00]} 43. Ne2 {[%emt 0:00:09]} Kf5 {[%emt 0:00:00]} 44. Kd2 {[%emt 0:06:04]} Ng5 {[%emt 0:00:00]} 45. Ng1 {[%emt 0:00:05]} Kf6 {[%emt 0:00:00]} 46. Kc3 {[%emt 0:03:12]} Ke6 {[%emt 0:00:00]} 47. Kd2 {[%emt 0:01:06]} Nf7 {[%emt 0:00:00]} 48. Ne2 {[%emt 0:01:45]} Ke5 {[%emt 0:00:00]} 49. Nc3 $2 {[%emt 0:00:36][%mdl 8192] White does not recover from this.} (49. Ke1 $15) 49... Ng5 $19 {[%emt 0:01:33]} 50. Ke2 {[%emt 0:00:06]} Ne6 {[%emt 0:01:48]} 51. Na4 {[%emt 0:01:53]} Nd4+ {[%emt 0:02:04]} 52. Kd3 {[%emt 0:01:27]} (52. Kf2 $142) 52... Nxf3 {[%emt 0:04:06]} 53. Nxb6 {[%emt 0:00:06]} (53. h3 $142 Nd4 54. Nxb6 Nxb3 55. Nd7+ Kf5 56. a4) 53... Nxh2 {[%emt 0:05:32] Threatens to win with ...h4.} 54. Na4 {[%emt 0:09:31]} h4 {[%emt 0:06:58]} (54... Ng4 $142 55. Nxc5 h4) 55. Nxc5 {[%emt 0:00:14]} Ng4 {[%emt 0:00:32] ( -> ...h3)} 56. Ke2 {[%emt 0:00:47]} h3 {[%emt 0:00:30][%cal Bh4h3,Bh3h2][%mdl 32] Black mates.} 57. Kf3 {[%emt 0:01:49] [#]} h2 $1 {[%emt 0:00:21]} 58. Kg2 {[%emt 0:00:08]} (58. Kxg4 h1=Q) 58... f3+ {[%emt 0:00:34][%cal Bf4f3,Bf3f2][%mdl 32]} 59. Kh1 {[%emt 0:00:04]} Kf4 {[%emt 0:00:38]} 60. b4 {[%emt 0:00:23]} f2 {[%emt 0:00:13] Weighted Error Value: White=0.49/Black=0.08 (flawless)} 0-1